bitfinex-derivatives/quotes_BTCF0:USTF0_20250809
["timestamp","ask_amount","ask_price","bid_price","bid_amount"]
[1754730636922,0.04901,117330.0,117320.0,1.25890752]
[1754730637120,0.04901,117330.0,117320.0,0.9131446]
[1754730637330,0.04901,117330.0,117320.0,1.25890752]
[1754730640028,0.0001,117330.0,117320.0,1.25890752]
[1754730640532,0.04901,117330.0,117320.0,1.25890752]
[1754730641627,0.04901,117330.0,117320.0,1.2739446]
[1754730642037,0.04901,117330.0,117320.0,1.61970752]
[1754730642427,0.0001,117330.0,117320.0,1.61970752]
[1754730642627,0.04901,117330.0,117320.0,1.61970752]
[1754730643033,0.04901,117330.0,117320.0,1.2739446]
[1754730643322,0.04901,117330.0,117320.0,1.61970752]
[1754730645837,0.04901,117330.0,117320.0,1.25890752]
[1754730646631,0.04901,117330.0,117320.0,0.9131446]
[1754730646831,0.04901,117330.0,117320.0,1.25890752]
[1754730648335,0.0001,117330.0,117320.0,1.25890752]
[1754730648538,0.04901,117330.0,117320.0,1.25890752]
[1754730648735,0.23039,117330.0,117320.0,1.25890752]
[1754730649638,0.23039,117330.0,117320.0,1.25406752]
[1754730650037,0.14243,117330.0,117320.0,0.9083046]
[1754730650240,0.04901,117330.0,117320.0,1.25406752]
[1754730651439,0.0001,117330.0,117320.0,1.61486752]
[1754730651638,0.04901,117330.0,117320.0,1.61486752]
[1754730652027,0.04901,117330.0,117320.0,1.52116752]
[1754730652843,0.04901,117330.0,117320.0,1.88196752]
[1754730653237,0.04901,117330.0,117320.0,1.52116752]
[1754730653438,0.04901,117330.0,117320.0,1.1754046]
[1754730653742,0.04901,117330.0,117320.0,1.52116752]
[1754730654040,0.04901,117330.0,117320.0,1.1754046]
[1754730654240,0.04901,117330.0,117320.0,1.52116752]
[1754730654837,0.04901,117330.0,117320.0,1.88196752]
[1754730656241,0.0001,117330.0,117320.0,1.88196752]
[1754730657945,0.0001,117330.0,117320.0,1.61486752]
[1754730658146,0.04901,117330.0,117320.0,1.61486752]
[1754730661040,0.0001,117330.0,117320.0,1.96063044]
[1754730662944,0.0001,117330.0,117320.0,1.61486752]
[1754730664037,0.0001,117330.0,117320.0,1.88196752]
[1754730664239,0.0001,117330.0,117320.0,2.22773044]
[1754730664437,0.0001,117330.0,117320.0,1.5362046]
[1754730664638,0.0001,117330.0,117320.0,2.22773044]
[1754730665435,0.0001,117330.0,117320.0,1.88196752]
[1754730665940,0.0001,117330.0,117320.0,1.5362046]
[1754730666244,0.0001,117330.0,117320.0,1.88196752]
[1754730667543,0.0001,117330.0,117320.0,1.5362046]
[1754730667742,0.0001,117330.0,117320.0,1.88196752]
[1754730668349,0.05897703,117350.0,117340.0,0.0852107]
[1754730668550,0.10494703,117350.0,117340.0,1.24865362]
[1754730669043,0.20745703,117350.0,117340.0,1.24865362]
[1754730669248,0.23915703,117350.0,117340.0,1.24865362]
[1754730669548,0.24115703,117350.0,117340.0,1.60945362]
[1754730669942,0.24115703,117350.0,117340.0,1.87655362]
[1754730670747,0.24315703,117350.0,117340.0,1.51575362]
[1754730670948,0.24315703,117350.0,117340.0,1.1699907]
[1754730672042,0.24315703,117350.0,117340.0,1.23957281]
[1754730673048,0.94971995,117350.0,117340.0,1.23957281]
[1754730673445,0.60395703,117350.0,117340.0,1.23957281]
[1754730675849,0.60395703,117350.0,117340.0,0.97247281]
[1754730676950,0.24315703,117350.0,117340.0,0.97247281]
[1754730677152,0.60395703,117350.0,117340.0,0.97247281]
[1754730678451,0.60395703,117350.0,117340.0,1.31823573]
[1754730678848,0.60395703,117350.0,117340.0,1.03000643]
[1754730679746,0.60395703,117350.0,117340.0,0.68424351]
[1754730679943,0.20121703,117350.0,117340.0,0.68424351]
[1754730680145,0.24315703,117350.0,117340.0,0.68424351]
[1754730680341,0.24315703,117350.0,117340.0,0.70305897]
[1754730680546,0.24315703,117350.0,117340.0,1.04882189]
[1754730682351,0.24315703,117350.0,117340.0,0.70305897]
[1754730682652,0.60395703,117350.0,117340.0,1.04882189]
[1754730683255,0.60395703,117350.0,117340.0,0.70305897]
[1754730683843,0.94971995,117350.0,117340.0,0.70305897]
[1754730684049,0.60395703,117350.0,117340.0,0.70305897]
[1754730684756,0.94971995,117350.0,117340.0,0.98900827]
[1754730684957,0.60395703,117350.0,117340.0,0.98900827]
[1754730685762,0.60115703,117350.0,117340.0,0.98900827]
[1754730686052,0.37112703,117350.0,117340.0,1.33477119]
[1754730686256,0.19841703,117350.0,117340.0,1.33477119]
[1754730686461,0.24035703,117350.0,117340.0,1.33477119]
[1754730688258,0.24035703,117350.0,117340.0,0.98900827]
[1754730688444,0.24035703,117350.0,117340.0,1.33477119]
[1754730688651,0.24035703,117350.0,117340.0,0.98900827]
[1754730690557,0.60115703,117350.0,117340.0,0.98900827]
[1754730692054,0.94691995,117350.0,117340.0,0.98900827]
[1754730692559,0.60115703,117350.0,117340.0,0.98900827]
[1754730695660,0.60115703,117350.0,117340.0,1.33477119]
[1754730696250,0.60115703,117350.0,117340.0,0.98900827]
[1754730696455,0.60115703,117350.0,117340.0,0.97019281]
[1754730696657,0.24035703,117350.0,117340.0,0.97019281]
[1754730697460,0.15244703,117350.0,117340.0,0.97019281]
[1754730697765,0.24802703,117350.0,117340.0,1.31595573]
[1754730698865,0.50699479,117350.0,117340.0,1.48812833]
[1754730699056,0.86779479,117350.0,117340.0,1.48812833]
[1754730699454,0.50699479,117350.0,117340.0,1.48812833]
[1754730699656,0.86779479,117350.0,117340.0,0.97019281]
[1754730699856,0.60882703,117350.0,117340.0,1.22916057]
[1754730700061,0.86779479,117350.0,117340.0,1.22916057]
[1754730700448,0.60882703,117350.0,117340.0,1.22916057]
[1754730700855,0.86779479,117350.0,117340.0,1.22916057]
[1754730701758,0.60882703,117350.0,117340.0,1.22916057]
[1754730702061,0.86779479,117350.0,117340.0,1.48812833]
[1754730703063,0.60882703,117350.0,117340.0,1.48812833]
[1754730703355,0.24802703,117350.0,117340.0,1.48812833]
[1754730703663,0.5269099,117350.0,117340.0,0.97019281]
[1754730703958,0.62874214,117350.0,117340.0,1.48812833]
[1754730704263,0.8877099,117350.0,117340.0,1.48812833]
[1754730705270,0.62874214,117350.0,117340.0,0.97019281]
[1754730705463,0.62874214,117350.0,117340.0,1.48812833]
[1754730705966,0.8877099,117350.0,117340.0,1.48812833]
[1754730706158,0.8877099,117350.0,117340.0,0.97019281]
[1754730706661,0.62874214,117350.0,117340.0,1.22916057]
[1754730706864,0.8877099,117350.0,117340.0,1.22916057]
[1754730707061,0.8877099,117350.0,117340.0,1.48812833]
[1754730707459,0.8877099,117350.0,117340.0,1.22916057]
[1754730707655,0.8877099,117350.0,117340.0,1.48812833]
[1754730708265,0.8877099,117350.0,117340.0,0.97019281]
[1754730708465,0.8877099,117350.0,117340.0,1.48812833]
[1754730708867,0.62874214,117350.0,117340.0,1.48812833]
[1754730709165,0.8877099,117350.0,117340.0,1.48812833]
[1754730709359,0.8877099,117350.0,117340.0,1.22916057]
[1754730709665,0.8877099,117350.0,117340.0,0.97019281]
[1754730709854,0.8877099,117350.0,117340.0,1.22916057]
[1754730710965,0.8877099,117350.0,117340.0,0.97019281]
[1754730711166,0.8877099,117350.0,117340.0,1.22916057]
[1754730711561,0.62874214,117350.0,117340.0,1.48812833]
[1754730711761,0.53673214,117350.0,117340.0,0.97019281]
[1754730711962,0.4348999,117350.0,117340.0,1.48812833]
[1754730712168,0.26794214,117350.0,117340.0,1.48812833]
[1754730713660,0.50699479,117350.0,117340.0,1.48812833]
[1754730713864,0.24802703,117350.0,117340.0,1.48812833]
[1754730714064,0.50699479,117350.0,117340.0,1.48812833]
[1754730716866,0.24802703,117350.0,117340.0,1.48812833]
[1754730717266,0.50699479,117350.0,117340.0,1.48812833]
[1754730717677,0.50699479,117350.0,117340.0,0.97019281]
[1754730717875,0.50699479,117350.0,117340.0,1.48812833]
[1754730718276,0.86779479,117350.0,117340.0,0.97019281]
[1754730718579,0.50699479,117350.0,117340.0,1.48812833]
[1754730719673,0.50699479,117350.0,117340.0,0.97019281]
[1754730719873,0.50699479,117350.0,117340.0,1.48812833]
[1754730720577,0.50699479,117350.0,117340.0,0.97019281]
[1754730720776,0.50699479,117350.0,117340.0,1.48812833]
[1754730721375,0.24802703,117350.0,117340.0,1.48812833]
[1754730721578,0.50699479,117350.0,117340.0,1.48812833]
[1754730723178,0.24802703,117350.0,117340.0,1.48812833]
[1754730723478,0.50699479,117350.0,117340.0,1.48812833]
[1754730724773,0.50699479,117350.0,117340.0,0.97019281]
[1754730724978,0.50699479,117350.0,117340.0,1.48812833]
[1754730725776,0.50699479,117350.0,117340.0,1.22916057]
[1754730726077,0.50699479,117350.0,117340.0,0.97019281]
[1754730726278,0.86779479,117350.0,117340.0,1.48812833]
[1754730726781,0.50699479,117350.0,117340.0,1.48812833]
[1754730727077,0.86779479,117350.0,117340.0,1.48812833]
[1754730729687,0.86779479,117350.0,117340.0,1.26048833]
[1754730729887,0.86779479,117350.0,117340.0,0.82776351]
[1754730730188,0.86779479,117350.0,117340.0,1.34569903]
[1754730734586,0.86779479,117350.0,117340.0,1.41292947]
[1754730736889,0.86779479,117350.0,117340.0,0.4114089]
[1754730737091,0.60882703,117350.0,117340.0,1.2189689]
[1754730737293,0.86779479,117350.0,117340.0,1.2189689]
[1754730737492,0.86779479,117350.0,117340.0,0.96000114]
[1754730737791,0.86779479,117350.0,117340.0,1.2189689]
[1754730738590,0.86779479,117350.0,117340.0,1.47793666]
[1754730738896,0.86779479,117350.0,117340.0,1.2189689]
[1754730739795,0.60882703,117350.0,117340.0,1.2189689]
[1754730739997,0.86779479,117350.0,117340.0,1.2189689]
[1754730740892,0.60882703,117350.0,117340.0,1.2189689]
[1754730741091,0.86779479,117350.0,117340.0,1.47793666]
[1754730742099,0.60882703,117350.0,117340.0,1.47793666]
[1754730742292,0.86779479,117350.0,117340.0,1.47793666]
[1754730742592,0.86779479,117350.0,117340.0,1.2189689]
[1754730743792,0.88771698,117350.0,117340.0,1.2189689]
[1754730747297,0.88771698,117350.0,117340.0,0.96000114]
[1754730747499,0.88771698,117350.0,117340.0,1.2189689]
[1754730748001,0.88771698,117350.0,117340.0,0.96000114]
[1754730748200,0.88771698,117350.0,117340.0,1.2189689]
[1754730748901,0.88771698,117350.0,117340.0,0.96000114]
[1754730749198,0.88771698,117350.0,117340.0,1.2189689]
[1754730749797,0.88771698,117350.0,117340.0,1.47793666]
[1754730751596,0.88771698,117350.0,117340.0,0.96000114]
[1754730751797,0.88771698,117350.0,117340.0,1.47793666]
[1754730751997,0.88771698,117350.0,117340.0,1.2189689]
[1754730754507,0.88771698,117350.0,117340.0,0.96000114]
[1754730754908,0.88771698,117350.0,117340.0,1.2173289]
[1754730757811,0.86779479,117350.0,117340.0,1.2173289]
[1754730758406,0.60882703,117350.0,117340.0,0.95836114]
[1754730758606,0.86779479,117350.0,117340.0,1.2173289]
[1754730759008,0.60882703,117350.0,117340.0,1.2173289]
[1754730759210,0.86779479,117350.0,117340.0,1.47629666]
[1754730759617,0.86779479,117350.0,117340.0,0.95836114]
[1754730759809,0.60882703,117350.0,117340.0,1.47629666]
[1754730760110,0.86779479,117350.0,117340.0,1.47629666]
[1754730762213,0.60882703,117350.0,117340.0,1.47629666]
[1754730762511,0.86779479,117350.0,117340.0,1.47629666]
[1754730763309,0.51681703,117350.0,117340.0,1.47629666]
[1754730763615,0.86012479,117350.0,117340.0,1.47629666]
[1754730763809,0.86012479,117350.0,117340.0,0.95836114]
[1754730764010,0.86012479,117350.0,117340.0,1.47629666]
[1754730764622,0.0027,117360.0,117340.0,1.65541191]
[1754730764811,0.79814776,117380.0,117370.0,0.2555673]
[1754730765114,0.35284776,117380.0,117370.0,1.32017506]
[1754730765316,0.2238,117380.0,117370.0,1.32017506]
[1754730765519,0.48276776,117380.0,117370.0,1.68097506]
[1754730766017,0.39842776,117380.0,117370.0,1.4220073]
[1754730766206,0.04846,117380.0,117370.0,1.68097506]
[1754730766710,0.05246,117380.0,117370.0,1.68097506]
[1754730766906,0.18888,117380.0,117370.0,1.68107513]
[1754730767106,0.2278,117380.0,117370.0,1.68107513]
[1754730767310,0.48676776,117380.0,117370.0,1.58722423]
[1754730767506,0.2278,117380.0,117370.0,1.67241333]
[1754730768818,0.48676776,117380.0,117370.0,1.70298931]
[1754730769012,0.2278,117380.0,117370.0,1.70298931]
[1754730769212,0.48676776,117380.0,117370.0,1.70298931]
[1754730769606,0.48276776,117380.0,117370.0,1.70398931]
[1754730769806,0.2238,117380.0,117370.0,1.70398931]
[1754730770018,0.48276776,117380.0,117370.0,1.70398931]
[1754730770219,0.84356776,117380.0,117370.0,1.34318931]
[1754730770421,1.10253552,117380.0,117370.0,1.08406155]
[1754730770617,0.84356776,117380.0,117370.0,1.34302931]
[1754730773316,0.84356776,117380.0,117370.0,1.08406155]
[1754730773516,0.5846,117380.0,117370.0,1.34302931]
[1754730773724,0.84356776,117380.0,117370.0,1.34302931]
[1754730774723,0.5846,117380.0,117370.0,1.34302931]
[1754730774923,0.84356776,117380.0,117370.0,1.34302931]
[1754730778026,0.84356776,117380.0,117370.0,1.08406155]
[1754730778228,0.84356776,117380.0,117370.0,1.34302931]
[1754730781725,0.84356776,117380.0,117370.0,1.08406155]
[1754730782231,0.84356776,117380.0,117370.0,1.34302931]
[1754730782732,0.5846,117380.0,117370.0,1.34302931]
[1754730782928,0.84356776,117380.0,117370.0,1.34302931]
[1754730783233,0.5846,117380.0,117370.0,1.34302931]
[1754730783534,0.84356776,117380.0,117370.0,1.34302931]
[1754730783734,0.5846,117380.0,117370.0,1.34302931]
[1754730784027,0.84356776,117380.0,117370.0,1.08406155]
[1754730784220,0.84356776,117380.0,117370.0,1.34302931]
[1754730786832,0.84356776,117380.0,117370.0,1.34278931]
[1754730788233,0.5846,117380.0,117370.0,1.34278931]
[1754730788533,0.84356776,117380.0,117370.0,1.34278931]
[1754730788734,0.5846,117380.0,117370.0,1.34278931]
[1754730788934,0.48276776,117380.0,117370.0,1.34278931]
[1754730790231,0.2238,117380.0,117370.0,1.34278931]
[1754730790431,0.48276776,117380.0,117370.0,1.34278931]
[1754730791637,0.48276776,117380.0,117370.0,1.08382155]
[1754730791838,0.48276776,117380.0,117370.0,1.34278931]
[1754730793241,0.84356776,117380.0,117370.0,1.34278931]
[1754730793739,0.86353149,117380.0,117370.0,1.34278931]
[1754730793942,0.50273149,117380.0,117370.0,1.34278931]
[1754730794331,0.86353149,117380.0,117370.0,1.34278931]
[1754730796631,0.86353149,117380.0,117370.0,1.08382155]
[1754730796838,0.86353149,117380.0,117370.0,1.34278931]
[1754730797033,0.60456373,117380.0,117370.0,1.34278931]
[1754730797238,0.86353149,117380.0,117370.0,1.34278931]
[1754730797542,0.86364897,117380.0,117370.0,1.34278931]
[1754730799238,0.86364897,117380.0,117370.0,1.08382155]
[1754730799545,0.86364897,117380.0,117370.0,1.34278931]
[1754730803352,0.37267897,117380.0,117370.0,1.34278931]
[1754730803545,0.53036121,117380.0,117370.0,1.34278931]
[1754730803847,0.21985,117380.0,117370.0,1.08382155]
[1754730804044,0.04846,117380.0,117370.0,1.60175707]
[1754730804236,0.3608,117390.0,117380.0,0.0851817]
[1754730804444,0.40752,117390.0,117380.0,0.34424953]
[1754730804634,0.45269,117390.0,117380.0,0.60321729]
[1754730805042,0.3608,117390.0,117380.0,0.60321729]
[1754730805248,0.45752,117400.0,117390.0,0.0851744]
[1754730805447,0.45752,117400.0,117390.0,1.14928223]
[1754730806148,0.4108,117400.0,117390.0,1.67534999]
[1754730806343,0.05,117400.0,117390.0,2.03614999]
[1754730806552,0.051,117400.0,117390.0,2.03614999]
[1754730807144,0.01233983,117410.0,117390.0,2.34819419]
[1754730807346,0.01233983,117410.0,117400.0,0.96390282]
[1754730807547,0.05905983,117410.0,117400.0,0.96400289]
[1754730807748,0.05905983,117410.0,117400.0,1.03045637]
[1754730809154,0.05905983,117410.0,117400.0,1.03145637]
[1754730809853,0.23044983,117410.0,117400.0,1.03145637]
[1754730810051,0.48941759,117410.0,117400.0,0.95760085]
[1754730810354,0.85021759,117410.0,117400.0,1.21756861]
[1754730810946,0.59124983,117410.0,117400.0,0.95860085]
[1754730811145,0.85021759,117410.0,117400.0,1.21756861]
[1754730811748,0.85021759,117410.0,117400.0,0.95860085]
[1754730811951,1.28342824,117410.0,117400.0,0.06855355]
[1754730812155,0.2113873,117400.0,117390.0,0.9752242]
[1754730812455,0.66799279,117400.0,117390.0,0.34414236]
[1754730812657,0.66799279,117400.0,117390.0,0.0851746]
[1754730813242,0.66799279,117400.0,117390.0,0.46336577]
[1754730813450,0.44988279,117400.0,117390.0,0.43320577]
[1754730813655,0.49499,117400.0,117390.0,0.68069037]
[1754730813859,0.57891,117400.0,117390.0,0.68069037]
[1754730814048,0.57891,117400.0,117390.0,0.68269037]
[1754730814252,0.21811,117400.0,117390.0,0.68269037]
[1754730814542,0.17936,117400.0,117390.0,0.68269037]
[1754730814745,0.59124983,117410.0,117400.0,0.1623073]
[1754730814956,0.08486983,117410.0,117400.0,1.31217847]
[1754730815155,0.13003983,117410.0,117400.0,1.31217847]
[1754730815353,0.16878983,117410.0,117400.0,1.31217847]
[1754730815556,0.19882983,117410.0,117400.0,1.31217847]
[1754730816057,0.19882983,117410.0,117400.0,1.38194147]
[1754730816659,0.23044983,117410.0,117400.0,1.38194147]
[1754730817051,0.59124983,117410.0,117400.0,1.38194147]
[1754730817856,0.59124983,117410.0,117400.0,1.38294147]
[1754730818058,0.59124983,117410.0,117400.0,0.1559303]
[1754730818262,0.59124983,117410.0,117400.0,0.9940903]
[1754730818452,0.50732983,117410.0,117400.0,1.38525147]
[1754730818657,0.41985983,117410.0,117400.0,1.38525147]
[1754730818960,0.41895983,117410.0,117400.0,1.38525147]
[1754730819462,0.46505983,117410.0,117400.0,1.38525147]
[1754730820655,0.60032983,117410.0,117400.0,1.38525147]
[1754730821054,0.37313983,117410.0,117400.0,1.38525147]
[1754730821461,0.01233983,117410.0,117400.0,1.74605147]
[1754730823464,0.01233983,117410.0,117400.0,2.09108264]
[1754730823858,0.01233983,117410.0,117400.0,1.74605147]
[1754730824660,0.01233983,117410.0,117400.0,0.94121147]
[1754730824865,0.20675983,117410.0,117400.0,1.74593147]
[1754730825665,0.05815983,117410.0,117400.0,1.74593147]
[1754730825867,0.01233983,117410.0,117400.0,1.74593147]
[1754730826067,0.01233983,117410.0,117400.0,2.09096264]
[1754730827262,0.3608,117440.0,117420.0,0.0851525]
[1754730827471,0.22719,117440.0,117430.0,1.52702147]
[1754730828168,0.13853,117440.0,117430.0,1.20400147]
[1754730828366,0.45351,117450.0,117440.0,0.118458]
[1754730828571,0.58799,117450.0,117440.0,0.50018917]
[1754730829168,0.55522,117450.0,117440.0,0.50018917]
[1754730829469,0.441888,117460.0,117440.0,0.75559857]
[1754730829663,0.474658,117460.0,117450.0,0.46348197]
[1754730829864,0.474658,117460.0,117450.0,0.50018197]
[1754730830364,0.609138,117460.0,117450.0,0.50018197]
[1754730830763,0.066968,117460.0,117450.0,0.50018197]
[1754730830968,0.017248,117460.0,117450.0,1.03126197]
[1754730831358,0.017248,117460.0,117450.0,1.05736089]
[1754730831575,0.017248,117460.0,117450.0,1.07623417]
[1754730831965,0.017248,117460.0,117450.0,1.07823417]
[1754730832269,0.017248,117460.0,117450.0,0.91095417]
[1754730832474,0.017248,117460.0,117450.0,0.529223]
[1754730832674,0.244438,117460.0,117450.0,1.32017417]
[1754730832863,0.605238,117460.0,117450.0,0.975223]
[1754730833065,0.605238,117460.0,117450.0,1.32025417]
[1754730833266,0.605238,117460.0,117450.0,1.35695417]
[1754730833769,0.605238,117460.0,117450.0,1.32025417]
[1754730834475,0.605238,117460.0,117450.0,0.51345417]
[1754730834770,0.605238,117460.0,117450.0,1.35683417]
[1754730834974,0.605238,117460.0,117450.0,1.35631417]
[1754730835367,0.605238,117460.0,117450.0,1.011283]
[1754730835669,0.605238,117460.0,117450.0,0.55015417]
[1754730835871,0.605238,117460.0,117450.0,0.974823]
[1754730836066,0.95026917,117460.0,117450.0,0.135103]
[1754730836266,0.95026917,117460.0,117450.0,0.941583]
[1754730836669,0.605238,117460.0,117450.0,0.974903]
[1754730837562,0.244438,117460.0,117450.0,0.974903]
[1754730837768,0.155778,117460.0,117450.0,1.31993417]
[1754730837963,0.155778,117460.0,117450.0,1.35663417]
[1754730838164,0.201878,117460.0,117450.0,1.35663417]
[1754730838468,0.244438,117460.0,117450.0,1.35903417]
[1754730839669,0.26434999,117460.0,117450.0,1.35903417]
[1754730840671,0.03715999,117460.0,117450.0,1.35903417]
[1754730840877,0.017248,117460.0,117450.0,1.71983417]
[1754730842169,0.017248,117460.0,117450.0,1.374803]
[1754730842374,0.017248,117460.0,117450.0,1.71983417]
[1754730843478,0.017248,117460.0,117450.0,1.374803]
[1754730843674,0.201878,117460.0,117450.0,0.87425417]
[1754730843867,0.017248,117460.0,117450.0,0.168423]
[1754730844067,0.244438,117460.0,117450.0,1.72019417]
[1754730844267,0.244438,117460.0,117450.0,1.35939417]
[1754730844573,0.244438,117460.0,117450.0,1.72019417]
[1754730844879,0.95026917,117460.0,117450.0,0.944863]
[1754730845074,0.605238,117460.0,117450.0,0.944863]
[1754730845274,0.244438,117460.0,117450.0,0.978183]
[1754730845471,0.605238,117460.0,117450.0,1.32321417]
[1754730845667,0.244438,117460.0,117450.0,1.32321417]
[1754730845880,0.605238,117460.0,117450.0,1.32309417]
[1754730846080,0.155778,117460.0,117450.0,1.32309417]
[1754730846378,0.017248,117460.0,117450.0,1.72059417]
[1754730846568,0.067028,117460.0,117450.0,1.35979417]
[1754730846775,0.206258,117460.0,117450.0,1.03263417]
[1754730846970,0.95110917,117460.0,117450.0,0.0851308]
[1754730847176,0.95110917,117460.0,117450.0,0.8972508]
[1754730847481,0.606078,117460.0,117450.0,0.8972508]
[1754730847674,0.606078,117460.0,117450.0,0.0851308]
[1754730847874,0.95110917,117460.0,117450.0,0.8970908]
[1754730848776,1.03623267,117460.0,117450.0,0.0851308]
[1754730848977,0.1127608,117450.0,117440.0,0.3405474]
[1754730849282,1.01899197,117450.0,117440.0,1.1520674]
[1754730849682,1.03893454,117450.0,117440.0,1.1520674]
[1754730850078,0.5954863,117450.0,117430.0,0.68560287]
[1754730850279,0.58883,117440.0,117430.0,1.50675287]
[1754730850479,0.60877257,117440.0,117430.0,1.50675287]
[1754730850982,0.60877257,117440.0,117430.0,1.1617217]
[1754730851375,0.22803,117440.0,117430.0,1.55203287]
[1754730851584,0.14024,117450.0,117440.0,0.1907382]
[1754730851779,0.574198,117460.0,117450.0,0.1026]
[1754730851976,0.22803,117450.0,117440.0,0.3610099]
[1754730852177,0.58883,117450.0,117440.0,1.2545481]
[1754730852885,0.58883,117450.0,117440.0,1.2575481]
[1754730853582,0.3608,117450.0,117440.0,1.60257927]
[1754730853774,0.567058,117460.0,117450.0,0.142451]
[1754730853980,0.245278,117460.0,117450.0,0.142451]
[1754730854484,0.245278,117460.0,117450.0,0.187731]
[1754730854882,0.245278,117460.0,117450.0,0.087131]
[1754730855086,0.95110917,117460.0,117450.0,0.899331]
[1754730855278,0.95110917,117460.0,117450.0,0.931401]
[1754730855475,0.606078,117460.0,117450.0,0.956651]
[1754730856187,0.606078,117460.0,117450.0,0.932401]
[1754730856393,0.95110917,117460.0,117450.0,0.932401]
[1754730856981,0.95110917,117460.0,117450.0,0.900331]
[1754730857377,1.04886854,117460.0,117450.0,0.900331]
[1754730857987,0.25524737,117460.0,117450.0,1.30268217]
[1754730858193,0.067028,117460.0,117450.0,1.34796217]
[1754730858586,0.017248,117460.0,117450.0,1.34796217]
[1754730859188,0.017248,117460.0,117450.0,1.70876217]
[1754730860793,0.017248,117460.0,117450.0,1.76750683]
[1754730864091,0.017248,117460.0,117450.0,1.363731]
[1754730864293,0.017248,117460.0,117450.0,1.76750683]
[1754730866390,1.09497733,117460.0,117450.0,0.003]
[1754730866585,0.606078,117460.0,117450.0,0.0881306]
[1754730866891,0.245278,117460.0,117450.0,0.1299106]
[1754730867090,0.606078,117460.0,117450.0,0.1299106]
[1754730867499,1.00985383,117460.0,117450.0,0.0881306]
[1754730867899,0.3141294,117450.0,117440.0,1.2072581]
[1754730868100,0.4516994,117450.0,117440.0,1.2072581]
[1754730869091,0.4516994,117450.0,117440.0,1.2102581]
[1754730869288,0.4516994,117450.0,117440.0,1.61403393]
[1754730870200,0.4516994,117450.0,117440.0,1.61503393]
[1754730870394,0.4126794,117450.0,117440.0,1.61503393]
[1754730870596,0.3639094,117450.0,117440.0,1.61503393]
[1754730870795,0.14024,117450.0,117440.0,1.35962403]
[1754730871093,0.017248,117460.0,117450.0,0.1877304]
[1754730871295,0.017248,117460.0,117450.0,0.95230623]
[1754730871996,0.067028,117460.0,117450.0,0.95230623]
[1754730873198,0.067028,117460.0,117450.0,0.95330623]
[1754730874408,0.154818,117460.0,117450.0,0.95330623]
[1754730876708,0.154818,117460.0,117450.0,0.1887304]
[1754730877009,0.154818,117460.0,117450.0,0.59250623]
[1754730877308,0.244548,117460.0,117450.0,0.9618104]
[1754730877606,0.244548,117460.0,117450.0,0.9638104]
[1754730878103,0.244548,117460.0,117450.0,1.41357623]
[1754730878503,0.092988,117460.0,117450.0,1.41157623]
[1754730878804,0.092988,117460.0,117450.0,1.41257623]
[1754730879010,0.244548,117460.0,117450.0,1.41257623]
[1754730879306,0.244548,117460.0,117450.0,1.77337623]
[1754730879506,0.244548,117460.0,117450.0,1.41257623]
[1754730879698,0.244548,117460.0,117450.0,1.77337623]
[1754730879905,0.017248,117460.0,117450.0,1.79105861]
[1754730880100,0.017248,117460.0,117450.0,1.79205861]
[1754730880701,0.017248,117460.0,117450.0,1.73282865]
[1754730881101,1e-07,117460.0,117450.0,1.73182865]
[1754730881308,1e-07,117460.0,117450.0,1.73382865]
[1754730881508,1e-07,117460.0,117450.0,1.46468669]
[1754730881702,1e-07,117460.0,117450.0,1.73382865]
[1754730882206,1e-07,117460.0,117450.0,1.38928278]
[1754730882401,1e-07,117460.0,117450.0,1.81023256]
[1754730882804,1e-07,117460.0,117450.0,1.80823256]
[1754730883001,1e-07,117460.0,117450.0,1.81023256]
[1754730883709,1e-07,117460.0,117450.0,1.81223256]
[1754730883902,1e-07,117460.0,117450.0,1.73582865]
[1754730889217,1e-07,117460.0,117450.0,1.39128278]
[1754730889413,1e-07,117460.0,117450.0,1.73582865]
[1754730889917,1e-07,117460.0,117450.0,1.39128278]
[1754730890218,1e-07,117460.0,117450.0,1.73582865]
[1754730893913,1e-07,117460.0,117450.0,1.81223256]
[1754730896527,1e-07,117460.0,117450.0,1.73582865]
[1754730897927,0.0038,117480.0,117470.0,0.196906]
[1754730898117,0.0038,117480.0,117470.0,1.02792784]
[1754730898318,0.05173,117480.0,117470.0,1.02792784]
[1754730898518,0.16192,117480.0,117470.0,1.37247371]
[1754730898725,0.10882,117480.0,117470.0,1.37247371]
[1754730899219,0.10882,117480.0,117470.0,1.37347371]
[1754730899426,0.10882,117480.0,117470.0,1.44148768]
[1754730899620,0.10882,117480.0,117470.0,1.09694181]
[1754730899927,0.2274,117480.0,117470.0,1.44248768]
[1754730900127,0.2274,117480.0,117470.0,1.45874181]
[1754730900327,0.2274,117480.0,117470.0,1.80328768]
[1754730900721,0.57194587,117480.0,117470.0,0.20491181]
[1754730901029,0.2274,117480.0,117470.0,1.38919768]
[1754730901321,0.2274,117480.0,117470.0,1.43518768]
[1754730901525,0.2274,117480.0,117470.0,1.79598768]
[1754730902126,0.2274,117480.0,117470.0,1.45144181]
[1754730902322,0.2274,117480.0,117470.0,1.43518768]
[1754730902825,0.2274,117480.0,117470.0,1.37693768]
[1754730903122,0.2274,117480.0,117470.0,1.38919768]
[1754730904616,0.2274,117480.0,117470.0,0.15512997]
[1754730904617,0.57194587,117480.0,117470.0,0.15512997]
[1754730904825,0.2274,117480.0,117470.0,0.98428997]
[1754730905026,1.47644949,117480.0,117470.0,0.15512997]
[1754730905324,1.92235819,117480.0,117470.0,0.11134997]
[1754730905529,1.49270362,117480.0,117470.0,0.086116]
[1754730906423,0.085116,117470.0,117460.0,0.32313182]
[1754730906634,1.02097187,117470.0,117460.0,0.15289172]
[1754730906826,1.28903969,117470.0,117460.0,0.15289172]
[1754730907122,1.58903969,117470.0,117460.0,0.0851171]
[1754730907322,0.13898,117460.0,117450.0,0.2553804]
[1754730907527,1.02097907,117460.0,117450.0,0.2553804]
[1754730907825,1.28157275,117460.0,117450.0,0.2553804]
[1754730909031,0.85190368,117460.0,117450.0,0.2553804]
[1754730909230,1.19644955,117460.0,117450.0,0.2553804]
[1754730909529,0.96593955,117460.0,117450.0,0.2553804]
[1754730909723,0.59141,117480.0,117470.0,0.2443759]
[1754730909923,0.59141,117480.0,117470.0,1.1118059]
[1754730910228,0.23061,117480.0,117470.0,1.1118059]
[1754730912824,0.59141,117480.0,117470.0,1.1118059]
[1754730913035,0.59141,117480.0,117470.0,0.9217959]
[1754730913327,0.59141,117480.0,117470.0,1.0810559]
[1754730914326,0.59341,117480.0,117470.0,1.1125259]
[1754730915235,0.59241,117480.0,117470.0,1.0810559]
[1754730915527,0.77337051,117480.0,117470.0,0.0851159]
[1754730915729,1.34837422,117480.0,117470.0,0.0851159]
[1754730918327,1.64837422,117480.0,117470.0,0.0851159]